{"text_format":"1","workbook":"xlsx","n_sheets":5,"sheets":["Instructions","Data Entry Sheet","Sheet1","Sort Data","UPDIF Div Sort"],"not_rendered":{"charts":0,"images":0,"macros":1,"external_links":0,"defined_names":1,"comments":0,"pivot_tables":0},"unopened":[],"bounds":{"document_bytes":16777216,"sheet_cells":100000,"rows_first":2000,"rows_last":500,"rows_between":2000,"halvings":0,"cell_chars":16384,"cell_head_chars":4096},"cells_cut":0,"cells_raw":0,"read":"whole","date_system":"1900"}

{"sheet":"Instructions","index":0,"n_rows":19,"n_cols":1,"rows_kept":19,"cut":false,"hidden":false,"merged":[]}
["1) Double check data on scoresheet"]
["2)  Fill out all white cells - do not leave any blank as data is required for assessing achievements earned and in case a tie breaker is needed"]
["If no UDT # ensure full names are used for handler and proper spelling for dog"]
["To determine placements:"]
["3) Go to sort sheet, place cursor in yellow box, press button to sort"]
["4) Review zone data for tie breakers"]
["If need be a clear data button is available in the total column to clear the sort sheet of previous data"]
[]
["Do not rearrange any columns, do not delete the example row!"]
["Save this form as the Event name, date, game (Example:  PlantCity2-8-157Up)"]
["Email to results@updogchallenge.com within 10 days of event"]
[]
["Tie Breaking: "]
[]
[]
["In the event of a tie, the following criteria will be used to determine placements:"]
["Finishing time to the 100th of a second.  If the teams are still tied then a "]
["15 second \"sudden death\" tie breaker round will occur.  The team with the most points in "]
["15 seconds wins.  The Sweet Spot bonus is not in play for the tie breaker."]

{"sheet":"Data Entry Sheet","index":1,"n_rows":300,"n_cols":15,"rows_kept":300,"cut":false,"hidden":false,"merged":[[0,0,0,13]]}
["7 Up Data Entry"]
["Level ","Handler","Dog","UDT #\n(this is the UpDog Team # not the competitor #)","Jumps            Total # of jumps completed successfully","Jumps Total","Catch Zones  Total # of catches completed successfully","Catch Total","Time Remaining   Total numbers of seconds remaining (rounded to the nearest whole number)","Total for Zones","Was the last catch made in the Sweet Spot\nY or N?","Zones + SS Total","Were all throws thrown as Rollers\nY or N?","High Roller","Division"]
[1,"Example","Uppy D",null,5,{"$f":"E3*3","v":15},5,{"$f":"G3*1","v":5},10,{"$f":"F3+H3+I3","v":30},"Y",{"$f":"SUM(J3)+IF(K3=\"Y\",7,IF(K3=\"N\",0))","v":37},"Y",{"$f":"IF(AND(L3>50,M3=\"Y\"),\"Yes\",\"No\")","v":"No"}]
[1,"Tammy Bonas","Tac","T2832181",12,{"$f":"E4*3","v":36},4,{"$f":"G4*1","v":4},0,{"$f":"F4+H4+I4","v":40},"N",{"$f":"SUM(J4)+IF(K4=\"Y\",7,IF(K4=\"N\",0))","v":40},"N",{"$f":"IF(AND(L4>50,M4=\"Y\"),\"Yes\",\"No\")","v":"No"}]
[1,"Sam Marion","Josie","T10565197",12,{"$f":"E5*3","v":36},5,{"$f":"G5*1","v":5},1,{"$f":"F5+H5+I5","v":42},"Y",49,"N","No"]
[1,"Lindsay Thompson","Moxie","T27199235",13,39,5,5,2,46,"Y",53,"N","No"]
[1,"Finn Proctor","Rumor","T29480237",5,15,5,5,6,26,"Y",33,"N","No"]
[1,"Tracy Love","Rhythm","T10175199",9,27,2,2,0,29,"N",29,"N","No"]
[1,"Frank Montgomery","Jagger","T2009152",7,21,5,5,0,26,"N",26,"N","No"]
[1,"Sam Marion","GIR","T20779220",7,21,4,4,0,25,"N",25,"N","No"]
[1,"Jeff Love","Rhapsody","T13736205",6,18,1,1,0,19,"N",19,"N","No"]
[1,"Marisa Finan-Goode","Kite","T21413223",8,24,5,5,0,29,"N",29,"N","No"]
[1,"Silver Alfriker","Bisha","T26466233",5,{"$f":"E13*3","v":15},2,2,0,17,"N",17,"N","No"]
[1,"Finn Proctor","Tango","T30544231",5,15,4,4,0,19,"N",19,"N","No"]
[1,"Zoey Proctor","Figment","T29478231",3,9,3,3,0,12,"N",12,"N","No"]
[1,"Tammy Bonas","Bo","T26447235",8,24,3,3,0,27,"N",27,"N","No"]
[1,null,null,null,null,0,null,0,null,0,null,0,null,"No"]
[1,null,null,null,null,0,null,0,null,0,null,0,null,"No"]
[1,null,null,null,null,0,null,0,null,0,null,0,null,"No"]
[1,null,null,null,null,0,null,0,null,0,null,0,null,"No"]
[1,null,null,null,null,0,null,0,null,0,null,0,null,"No"]
[1,null,null,null,null,{"$f":"E22*3","v":0},null,0,null,0,null,0,null,"No"]
[1,null,null,null,null,0,null,0,null,0,null,0,null,"No"]
[1,null,null,null,null,0,null,0,null,0,null,0,null,"No"]
[1,null,null,null,null,0,null,0,null,0,null,0,null,"No"]
[1,null,null,null,null,0,null,0,null,0,null,0,null,"No"]
[1,null,null,null,null,0,null,0,null,0,null,0,null,"No"]
[1,null,null,null,null,0,null,0,null,0,null,0,null,"No"]
[1,null,null,null,null,0,null,0,null,0,null,0,null,"No"]
[1,null,null,null,null,0,null,0,null,0,null,0,null,"No"]
[1,null,null,null,null,0,null,0,null,0,null,0,null,"No"]
[1,null,null,null,null,0,null,0,null,0,null,0,null,"No"]
[1,null,null,null,null,0,null,0,null,0,null,0,null,"No"]
[1,null,null,null,null,0,null,0,null,0,null,0,null,"No"]
[1,null,null,null,null,0,null,0,null,0,null,0,null,"No"]
[1,null,null,null,null,0,null,0,null,0,null,0,null,"No"]
[1,null,null,null,null,0,null,0,null,0,null,0,null,"No"]
[1,null,null,null,null,0,null,0,null,0,null,0,null,"No"]
[1,null,null,null,null,0,null,0,null,0,null,0,null,"No"]
[1,null,null,null,null,0,null,0,null,0,null,0,null,{"$f":"IF(AND(L40>50,M40=\"Y\"),\"Yes\",\"No\")","v":"No"}]
[1,null,null,null,null,0,null,0,null,0,null,0,null,"No"]
[1,null,null,null,null,0,null,0,null,0,null,0,null,"No"]
[1,null,null,null,null,0,null,0,null,0,null,0,null,"No"]
[1,null,null,null,null,0,null,0,null,0,null,0,null,"No"]
[1,null,null,null,null,0,null,0,null,0,null,0,null,"No"]
[1,null,null,null,null,0,null,0,null,0,null,0,null,"No"]
[1,null,null,null,null,0,null,0,null,0,null,0,null,"No"]
[1,null,null,null,null,0,null,0,null,0,null,0,null,"No"]
[1,null,null,null,null,0,null,0,null,0,null,0,null,"No"]
[1,null,null,null,null,0,null,0,null,0,null,0,null,"No"]
[1,null,null,null,null,0,null,0,null,0,null,0,null,"No"]
[1,null,null,null,null,0,null,0,null,0,null,0,null,"No"]
[1,null,null,null,null,0,null,0,null,0,null,0,null,"No"]
[1,null,null,null,null,0,null,0,null,0,null,0,null,"No"]
[1,null,null,null,null,0,null,0,null,0,null,0,null,"No"]
[1,null,null,null,null,0,null,0,null,0,null,0,null,"No"]
[1,null,null,null,null,0,null,0,null,0,null,0,null,"No"]
[1,null,null,null,null,0,null,0,null,0,null,0,null,"No"]
[1,null,null,null,null,0,null,0,null,0,null,0,null,"No"]
[1,null,null,null,null,0,null,0,null,0,null,0,null,"No"]
[1,null,null,null,null,0,null,0,null,0,null,0,null,"No"]
[1,null,null,null,null,0,null,0,null,0,null,0,null,"No"]
[1,null,null,null,null,0,null,0,null,0,null,0,null,"No"]
[1,null,null,null,null,0,null,0,null,0,null,0,null,"No"]
[1,null,null,null,null,0,null,0,null,0,null,0,null,"No"]
[1,null,null,null,null,0,null,0,null,0,null,0,null,{"$f":"IF(AND(L66>50,M66=\"Y\"),\"Yes\",\"No\")","v":"No"}]
[1,null,null,null,null,0,null,0,null,0,null,0,null,"No"]
[1,null,null,null,null,0,null,0,null,0,null,{"$f":"SUM(J68)+IF(K68=\"Y\",7,IF(K68=\"N\",0))","v":0},null,{"$f":"IF(AND(L68>50,M68=\"Y\"),\"Yes\",\"No\")","v":"No"}]
[1,null,null,null,null,{"$f":"E69*3","v":0},null,{"$f":"G69*1","v":0},null,{"$f":"F69+H69+I69","v":0},null,0,null,"No"]
[1,null,null,null,null,0,null,0,null,0,null,0,null,"No"]
[1,null,null,null,null,0,null,0,null,0,null,0,null,"No"]
[1,null,null,null,null,0,null,0,null,0,null,0,null,"No"]
[1,null,null,null,null,0,null,0,null,0,null,0,null,"No"]
[1,null,null,null,null,0,null,0,null,0,null,0,null,"No"]
[1,null,null,null,null,0,null,0,null,0,null,0,null,"No"]
[1,null,null,null,null,0,null,0,null,0,null,0,null,"No"]
[1,null,null,null,null,0,null,0,null,0,null,0,null,"No"]
[1,null,null,null,null,0,null,0,null,0,null,0,null,"No"]
[1,null,null,null,null,0,null,{"$f":"G79*1","v":0},null,0,null,0,null,"No"]
[1,null,null,null,null,0,null,0,null,0,null,0,null,"No"]
[1,null,null,null,null,0,null,0,null,0,null,0,null,"No"]
[1,null,null,null,null,0,null,0,null,0,null,0,null,"No"]
[1,null,null,null,null,0,null,0,null,0,null,0,null,"No"]
[1,null,null,null,null,0,null,0,null,0,null,0,null,"No"]
[1,null,null,null,null,0,null,0,null,0,null,0,null,"No"]
[1,null,null,null,null,0,null,0,null,0,null,0,null,"No"]
[1,null,null,null,null,0,null,0,null,0,null,0,null,"No"]
[1,null,null,null,null,0,null,0,null,0,null,0,null,"No"]
[1,null,null,null,null,0,null,0,null,0,null,0,null,"No"]
[1,null,null,null,null,0,null,0,null,0,null,0,null,"No"]
[1,null,null,null,null,0,null,0,null,0,null,0,null,"No"]
[1,null,null,null,null,0,null,0,null,0,null,0,null,"No"]
[1,null,null,null,null,0,null,0,null,0,null,0,null,"No"]
[1,null,null,null,null,0,null,0,null,0,null,0,null,"No"]
[1,null,null,null,null,0,null,0,null,0,null,0,null,{"$f":"IF(AND(L95>50,M95=\"Y\"),\"Yes\",\"No\")","v":"No"}]
[1,null,null,null,null,0,null,0,null,0,null,0,null,{"$f":"IF(AND(L96>50,M96=\"Y\"),\"Yes\",\"No\")","v":"No"}]
[1,null,null,null,null,0,null,0,null,0,null,0,null,"No"]
[1,null,null,null,null,0,null,0,null,0,null,0,null,"No"]
[1,null,null,null,null,0,null,0,null,0,null,0,null,"No"]
[1,null,null,null,null,0,null,0,null,0,null,0,null,"No"]
[1,null,null,null,null,0,null,0,null,0,null,0,null,"No"]
[1,null,null,null,null,0,null,0,null,0,null,0,null,"No"]
[1,null,null,null,null,0,null,0,null,0,null,0,null,"No"]
[1,null,null,null,null,0,null,0,null,0,null,0,null,"No"]
[1,null,null,null,null,0,null,0,null,0,null,0,null,"No"]
[null,null,null,null,null,0,null,0,null,0,null,0,null,"No"]
[null,null,null,null,null,0,null,0,null,0,null,0,null,"No"]
[null,null,null,null,null,0,null,0,null,0,null,0,null,"No"]
[null,null,null,null,null,0,null,0,null,0,null,0,null,"No"]
[null,null,null,null,null,0,null,0,null,0,null,0,null,"No"]
[null,null,null,null,null,0,null,0,null,0,null,0,null,"No"]
[null,null,null,null,null,0,null,0,null,0,null,0,null,"No"]
[null,null,null,null,null,0,null,0,null,0,null,0,null,"No"]
[null,null,null,null,null,0,null,0,null,0,null,0,null,"No"]
[null,null,null,null,null,0,null,0,null,0,null,0,null,"No"]
[null,null,null,null,null,0,null,0,null,0,null,0,null,"No"]
[null,null,null,null,null,0,null,0,null,0,null,0,null,"No"]
[null,null,null,null,null,0,null,0,null,0,null,0,null,"No"]
[null,null,null,null,null,0,null,0,null,0,null,0,null,"No"]
[null,null,null,null,null,0,null,0,null,0,null,0,null,"No"]
[null,null,null,null,null,0,null,0,null,0,null,0,null,"No"]
[null,null,null,null,null,0,null,0,null,0,null,0,null,"No"]
[null,null,null,null,null,0,null,0,null,0,null,0,null,"No"]
[null,null,null,null,null,0,null,0,null,0,null,0,null,"No"]
[null,null,null,null,null,0,null,0,null,0,null,0,null,"No"]
[null,null,null,null,null,0,null,0,null,0,null,0,null,"No"]
[null,null,null,null,null,0,null,0,null,0,null,0,null,"No"]
[null,null,null,null,null,0,null,0,null,0,null,0,null,"No"]
[null,null,null,null,null,0,null,0,null,0,null,0,null,"No"]
[null,null,null,null,null,0,null,0,null,0,null,0,null,"No"]
[null,null,null,null,null,0,null,0,null,0,null,0,null,"No"]
[null,null,null,null,null,0,null,0,null,0,null,{"$f":"SUM(J132)+IF(K132=\"Y\",7,IF(K132=\"N\",0))","v":0},null,"No"]
[null,null,null,null,null,{"$f":"E133*3","v":0},null,{"$f":"G133*1","v":0},null,{"$f":"F133+H133+I133","v":0},null,0,null,"No"]
[null,null,null,null,null,0,null,0,null,0,null,0,null,"No"]
[null,null,null,null,null,0,null,0,null,0,null,0,null,"No"]
[null,null,null,null,null,0,null,0,null,0,null,0,null,"No"]
[null,null,null,null,null,0,null,0,null,0,null,0,null,"No"]
[null,null,null,null,null,0,null,0,null,0,null,0,null,"No"]
[null,null,null,null,null,0,null,0,null,0,null,0,null,"No"]
[null,null,null,null,null,0,null,0,null,0,null,0,null,"No"]
[null,null,null,null,null,0,null,0,null,0,null,0,null,"No"]
[null,null,null,null,null,0,null,0,null,0,null,0,null,"No"]
[null,null,null,null,null,0,null,0,null,0,null,0,null,"No"]
[null,null,null,null,null,0,null,0,null,0,null,0,null,"No"]
[null,null,null,null,null,0,null,0,null,0,null,0,null,"No"]
[null,null,null,null,null,0,null,0,null,0,null,0,null,"No"]
[null,null,null,null,null,0,null,0,null,0,null,0,null,"No"]
[null,null,null,null,null,0,null,0,null,0,null,0,null,"No"]
[null,null,null,null,null,0,null,0,null,0,null,0,null,"No"]
[null,null,null,null,null,0,null,0,null,0,null,0,null,"No"]
[null,null,null,null,null,0,null,0,null,0,null,0,null,"No"]
[null,null,null,null,null,0,null,0,null,0,null,0,null,"No"]
[null,null,null,null,null,0,null,0,null,0,null,0,null,"No"]
[null,null,null,null,null,0,null,0,null,0,null,0,null,"No"]
[null,null,null,null,null,0,null,0,null,0,null,0,null,"No"]
[null,null,null,null,null,0,null,0,null,0,null,0,null,"No"]
[null,null,null,null,null,0,null,0,null,0,null,0,null,"No"]
[null,null,null,null,null,0,null,0,null,0,null,0,null,"No"]
[null,null,null,null,null,0,null,0,null,0,null,0,null,"No"]
[null,null,null,null,null,0,null,0,null,0,null,0,null,{"$f":"IF(AND(L160>50,M160=\"Y\"),\"Yes\",\"No\")","v":"No"}]
[null,null,null,null,null,0,null,0,null,0,null,0,null,"No"]
[null,null,null,null,null,0,null,0,null,0,null,0,null,"No"]
[null,null,null,null,null,0,null,0,null,0,null,0,null,"No"]
[null,null,null,null,null,0,null,0,null,0,null,0,null,"No"]
[null,null,null,null,null,0,null,0,null,0,null,0,null,"No"]
[null,null,null,null,null,0,null,0,null,0,null,0,null,"No"]
[null,null,null,null,null,0,null,0,null,0,null,0,null,"No"]
[null,null,null,null,null,0,null,0,null,0,null,0,null,"No"]
[null,null,null,null,null,0,null,0,null,0,null,0,null,"No"]
[null,null,null,null,null,0,null,0,null,0,null,0,null,"No"]
[null,null,null,null,null,0,null,0,null,0,null,0,null,"No"]
[null,null,null,null,null,0,null,0,null,0,null,0,null,"No"]
[null,null,null,null,null,0,null,0,null,0,null,0,null,"No"]
[null,null,null,null,null,0,null,0,null,0,null,0,null,"No"]
[null,null,null,null,null,0,null,0,null,0,null,0,null,"No"]
[null,null,null,null,null,0,null,0,null,0,null,0,null,"No"]
[null,null,null,null,null,0,null,0,null,0,null,0,null,"No"]
[null,null,null,null,null,0,null,0,null,0,null,0,null,"No"]
[null,null,null,null,null,0,null,0,null,0,null,0,null,"No"]
[null,null,null,null,null,0,null,0,null,0,null,0,null,"No"]
[null,null,null,null,null,0,null,0,null,0,null,0,null,"No"]
[null,null,null,null,null,0,null,0,null,0,null,0,null,"No"]
[null,null,null,null,null,0,null,0,null,0,null,0,null,"No"]
[null,null,null,null,null,0,null,0,null,0,null,0,null,"No"]
[null,null,null,null,null,0,null,0,null,0,null,0,null,"No"]
[null,null,null,null,null,0,null,0,null,0,null,0,null,"No"]
[null,null,null,null,null,0,null,0,null,0,null,0,null,"No"]
[null,null,null,null,null,0,null,0,null,0,null,0,null,"No"]
[null,null,null,null,null,0,null,0,null,0,null,0,null,"No"]
[null,null,null,null,null,0,null,0,null,0,null,0,null,"No"]
[null,null,null,null,null,0,null,0,null,0,null,0,null,"No"]
[null,null,null,null,null,0,null,0,null,0,null,0,null,"No"]
[null,null,null,null,null,0,null,0,null,0,null,0,null,"No"]
[null,null,null,null,null,0,null,0,null,0,null,0,null,"No"]
[null,null,null,null,null,0,null,0,null,0,null,0,null,"No"]
[null,null,null,null,null,0,null,0,null,0,null,{"$f":"SUM(J196)+IF(K196=\"Y\",7,IF(K196=\"N\",0))","v":0},null,"No"]
[null,null,null,null,null,{"$f":"E197*3","v":0},null,{"$f":"G197*1","v":0},null,{"$f":"F197+H197+I197","v":0},null,0,null,"No"]
[null,null,null,null,null,0,null,0,null,0,null,0,null,"No"]
[null,null,null,null,null,0,null,0,null,0,null,0,null,"No"]
[null,null,null,null,null,0,null,0,null,0,null,0,null,"No"]
[null,null,null,null,null,0,null,0,null,0,null,0,null,"No"]
[null,null,null,null,null,0,null,0,null,0,null,0,null,"No"]
[null,null,null,null,null,0,null,0,null,0,null,0,null,"No"]
[null,null,null,null,null,0,null,0,null,0,null,0,null,"No"]
[null,null,null,null,null,0,null,0,null,0,null,0,null,"No"]
[null,null,null,null,null,0,null,0,null,0,null,0,null,"No"]
[null,null,null,null,null,0,null,0,null,0,null,0,null,"No"]
[null,null,null,null,null,0,null,0,null,0,null,0,null,"No"]
[null,null,null,null,null,0,null,0,null,0,null,0,null,"No"]
[null,null,null,null,null,0,null,0,null,0,null,0,null,"No"]
[null,null,null,null,null,0,null,0,null,0,null,0,null,"No"]
[null,null,null,null,null,0,null,0,null,0,null,0,null,"No"]
[null,null,null,null,null,0,null,0,null,0,null,0,null,"No"]
[null,null,null,null,null,0,null,0,null,0,null,0,null,"No"]
[null,null,null,null,null,0,null,0,null,0,null,0,null,"No"]
[null,null,null,null,null,0,null,0,null,0,null,0,null,"No"]
[null,null,null,null,null,0,null,0,null,0,null,0,null,"No"]
[null,null,null,null,null,0,null,0,null,0,null,0,null,"No"]
[null,null,null,null,null,0,null,0,null,0,null,0,null,"No"]
[null,null,null,null,null,0,null,0,null,0,null,0,null,"No"]
[null,null,null,null,null,0,null,0,null,0,null,0,null,"No"]
[null,null,null,null,null,0,null,0,null,0,null,0,null,"No"]
[null,null,null,null,null,0,null,0,null,0,null,0,null,"No"]
[null,null,null,null,null,0,null,0,null,0,null,0,null,{"$f":"IF(AND(L224>50,M224=\"Y\"),\"Yes\",\"No\")","v":"No"}]
[null,null,null,null,null,0,null,0,null,0,null,0,null,"No"]
[null,null,null,null,null,0,null,0,null,0,null,0,null,"No"]
[null,null,null,null,null,0,null,0,null,0,null,0,null,"No"]
[null,null,null,null,null,0,null,0,null,0,null,0,null,"No"]
[null,null,null,null,null,0,null,0,null,0,null,0,null,"No"]
[null,null,null,null,null,0,null,0,null,0,null,0,null,"No"]
[null,null,null,null,null,0,null,0,null,0,null,0,null,"No"]
[null,null,null,null,null,0,null,0,null,0,null,0,null,"No"]
[null,null,null,null,null,0,null,0,null,0,null,0,null,"No"]
[null,null,null,null,null,0,null,0,null,0,null,0,null,"No"]
[null,null,null,null,null,0,null,0,null,0,null,0,null,"No"]
[null,null,null,null,null,0,null,0,null,0,null,0,null,"No"]
[null,null,null,null,null,0,null,0,null,0,null,0,null,"No"]
[null,null,null,null,null,0,null,0,null,0,null,0,null,"No"]
[null,null,null,null,null,0,null,0,null,0,null,0,null,"No"]
[null,null,null,null,null,0,null,0,null,0,null,0,null,"No"]
[null,null,null,null,null,0,null,0,null,0,null,0,null,"No"]
[null,null,null,null,null,0,null,0,null,0,null,0,null,"No"]
[null,null,null,null,null,0,null,0,null,0,null,0,null,"No"]
[null,null,null,null,null,0,null,0,null,0,null,0,null,"No"]
[null,null,null,null,null,0,null,0,null,0,null,0,null,"No"]
[null,null,null,null,null,0,null,0,null,0,null,0,null,"No"]
[null,null,null,null,null,0,null,0,null,0,null,0,null,"No"]
[null,null,null,null,null,0,null,0,null,0,null,0,null,"No"]
[null,null,null,null,null,0,null,0,null,0,null,0,null,"No"]
[null,null,null,null,null,0,null,0,null,0,null,0,null,"No"]
[null,null,null,null,null,0,null,0,null,0,null,0,null,"No"]
[null,null,null,null,null,0,null,0,null,0,null,0,null,"No"]
[null,null,null,null,null,0,null,0,null,0,null,0,null,"No"]
[null,null,null,null,null,0,null,0,null,0,null,0,null,"No"]
[null,null,null,null,null,0,null,0,null,0,null,0,null,"No"]
[null,null,null,null,null,0,null,0,null,0,null,0,null,"No"]
[null,null,null,null,null,0,null,0,null,0,null,0,null,"No"]
[null,null,null,null,null,0,null,0,null,0,null,0,null,"No"]
[null,null,null,null,null,0,null,0,null,0,null,0,null,"No"]
[null,null,null,null,null,0,null,0,null,0,null,{"$f":"SUM(J260)+IF(K260=\"Y\",7,IF(K260=\"N\",0))","v":0},null,"No"]
[null,null,null,null,null,{"$f":"E261*3","v":0},null,{"$f":"G261*1","v":0},null,{"$f":"F261+H261+I261","v":0},null,0,null,"No"]
[null,null,null,null,null,0,null,0,null,0,null,0,null,"No"]
[null,null,null,null,null,0,null,0,null,0,null,0,null,"No"]
[null,null,null,null,null,0,null,0,null,0,null,0,null,"No"]
[null,null,null,null,null,0,null,0,null,0,null,0,null,"No"]
[null,null,null,null,null,0,null,0,null,0,null,0,null,"No"]
[null,null,null,null,null,0,null,0,null,0,null,0,null,"No"]
[null,null,null,null,null,0,null,0,null,0,null,0,null,"No"]
[null,null,null,null,null,0,null,0,null,0,null,0,null,"No"]
[null,null,null,null,null,0,null,0,null,0,null,0,null,"No"]
[null,null,null,null,null,0,null,0,null,0,null,0,null,"No"]
[null,null,null,null,null,0,null,0,null,0,null,0,null,"No"]
[null,null,null,null,null,0,null,0,null,0,null,0,null,"No"]
[null,null,null,null,null,0,null,0,null,0,null,0,null,"No"]
[null,null,null,null,null,0,null,0,null,0,null,0,null,"No"]
[null,null,null,null,null,0,null,0,null,0,null,0,null,"No"]
[null,null,null,null,null,0,null,0,null,0,null,0,null,"No"]
[null,null,null,null,null,0,null,0,null,0,null,0,null,"No"]
[null,null,null,null,null,0,null,0,null,0,null,0,null,"No"]
[null,null,null,null,null,0,null,0,null,0,null,0,null,"No"]
[null,null,null,null,null,0,null,0,null,0,null,0,null,"No"]
[null,null,null,null,null,0,null,0,null,0,null,0,null,"No"]
[null,null,null,null,null,0,null,0,null,0,null,0,null,"No"]
[null,null,null,null,null,0,null,0,null,0,null,0,null,"No"]
[null,null,null,null,null,0,null,0,null,0,null,0,null,"No"]
[null,null,null,null,null,0,null,0,null,0,null,0,null,"No"]
[null,null,null,null,null,0,null,0,null,0,null,0,null,"No"]
[null,null,null,null,null,0,null,0,null,0,null,0,null,{"$f":"IF(AND(L288>50,M288=\"Y\"),\"Yes\",\"No\")","v":"No"}]
[null,null,null,null,null,0,null,0,null,0,null,0,null,"No"]
[null,null,null,null,null,0,null,0,null,0,null,0,null,"No"]
[null,null,null,null,null,0,null,0,null,0,null,0,null,"No"]
[null,null,null,null,null,0,null,0,null,0,null,0,null,"No"]
[null,null,null,null,null,0,null,0,null,0,null,0,null,"No"]
[null,null,null,null,null,0,null,0,null,0,null,0,null,"No"]
[null,null,null,null,null,0,null,0,null,0,null,0,null,"No"]
[null,null,null,null,null,0,null,0,null,0,null,0,null,"No"]
[null,null,null,null,null,0,null,0,null,0,null,0,null,"No"]
[null,null,null,null,null,0,null,0,null,0,null,0,null,"No"]
[null,null,null,null,null,0,null,0,null,0,null,0,null,"No"]
[null,null,null,null,null,0,null,0,null,0,null,0,null,"No"]

{"sheet":"Sheet1","index":2,"n_rows":60,"n_cols":7,"rows_kept":60,"cut":false,"hidden":true,"merged":[]}
[null,null,null,0,null,null,0]
["Y",null,null,1,null,null,1]
["N",null,null,2,null,null,2]
[null,null,null,3,null,null,3]
[null,null,null,4,null,null,4]
[null,null,null,5,null,null,5]
[null,null,null,null,null,null,6]
[null,null,null,null,null,null,7]
[null,null,null,null,null,null,8]
[null,null,null,null,null,null,9]
[null,null,null,null,null,null,10]
[null,null,null,null,null,null,11]
[null,null,null,null,null,null,12]
[null,null,null,null,null,null,13]
[null,null,null,null,null,null,14]
[null,null,null,null,null,null,15]
[null,null,null,null,null,null,16]
[null,null,null,null,null,null,17]
[null,null,null,null,null,null,18]
[null,null,null,null,null,null,19]
[null,null,null,null,null,null,20]
[null,null,null,null,null,null,21]
[null,null,null,null,null,null,22]
[null,null,null,null,null,null,23]
[null,null,null,null,null,null,24]
[null,null,null,null,null,null,25]
[null,null,null,null,null,null,26]
[null,null,null,null,null,null,27]
[null,null,null,null,null,null,28]
[null,null,null,null,null,null,29]
[null,null,null,null,null,null,30]
[null,null,null,null,null,null,31]
[null,null,null,null,null,null,32]
[null,null,null,null,null,null,33]
[null,null,null,null,null,null,34]
[null,null,null,null,null,null,35]
[null,null,null,null,null,null,36]
[null,null,null,null,null,null,37]
[null,null,null,null,null,null,38]
[null,null,null,null,null,null,39]
[null,null,null,null,null,null,40]
[null,null,null,null,null,null,41]
[null,null,null,null,null,null,42]
[null,null,null,null,null,null,43]
[null,null,null,null,null,null,44]
[null,null,null,null,null,null,45]
[null,null,null,null,null,null,46]
[null,null,null,null,null,null,47]
[null,null,null,null,null,null,48]
[null,null,null,null,null,null,49]
[null,null,null,null,null,null,50]
[null,null,null,null,null,null,51]
[null,null,null,null,null,null,52]
[null,null,null,null,null,null,53]
[null,null,null,null,null,null,54]
[null,null,null,null,null,null,55]
[null,null,null,null,null,null,56]
[null,null,null,null,null,null,57]
[null,null,null,null,null,null,58]
[null,null,null,null,null,null,59]

{"sheet":"Sort Data","index":3,"n_rows":298,"n_cols":14,"rows_kept":298,"cut":false,"hidden":false,"merged":[]}
["Level ","Handler","Dog","UDT #\n(this is the UpDog Team # not the competitor #)","Jumps            Total # of jumps completed successfully","Jumps Total","Catch Zones  Total # of jumps completed successfully","Catch Total","Time Remaining   Total numbers of seconds remaining (rounded to the nearest whole number)","Total for Zones","Was the last catch made in the Sweet Spot\nY or N?","Zones + SS Total","Were all throws thrown as Rollers\nY or N?","High Roller"]
[1,"Lindsay Thompson","Moxie","T27199235",13,{"$f":"E2*3","v":39},5,{"$f":"G2*1","v":5},2,{"$f":"F2+H2+I2","v":46},"Y",{"$f":"SUM(J2)+IF(K2=\"Y\",7,IF(K2=\"N\",0))","v":53},"N",{"$f":"IF(AND(L2>50,M2=\"Y\"),\"Yes\",\"No\")","v":"No"}]
[1,"Sam Marion","Josie","T10565197",12,36,5,5,1,42,"Y",49,"N","No"]
[1,"Tammy Bonas","Tac","T2832181",12,36,4,4,0,40,"N",40,"N","No"]
[1,"Finn Proctor","Rumor","T29480237",5,15,5,5,6,26,"Y",33,"N","No"]
[1,"Tracy Love","Rhythm","T10175199",9,27,2,2,0,29,"N",29,"N","No"]
[1,"Marisa Finan-Goode","Kite","T21413223",8,24,5,5,0,29,"N",29,"N","No"]
[1,"Tammy Bonas","Bo","T26447235",8,24,3,3,0,27,"N",27,"N","No"]
[1,"Frank Montgomery","Jagger","T2009152",7,21,5,5,0,26,"N",26,"N","No"]
[1,"Sam Marion","GIR","T20779220",7,21,4,4,0,25,"N",25,"N","No"]
[1,"Jeff Love","Rhapsody","T13736205",6,18,1,1,0,19,"N",19,"N","No"]
[1,"Finn Proctor","Tango","T30544231",5,15,4,4,0,19,"N",19,"N","No"]
[1,"Silver Alfriker","Bisha","T26466233",5,15,2,2,0,17,"N",17,"N","No"]
[1,"Zoey Proctor","Figment","T29478231",3,9,3,3,0,12,"N",12,"N","No"]
[1,null,null,null,null,0,null,0,null,0,null,0,null,"No"]
[1,null,null,null,null,0,null,0,null,0,null,0,null,"No"]
[1,null,null,null,null,0,null,0,null,0,null,0,null,"No"]
[1,null,null,null,null,0,null,0,null,0,null,0,null,"No"]
[1,null,null,null,null,0,null,0,null,0,null,0,null,"No"]
[1,null,null,null,null,0,null,0,null,0,null,0,null,"No"]
[1,null,null,null,null,0,null,0,null,0,null,0,null,"No"]
[1,null,null,null,null,0,null,0,null,0,null,0,null,"No"]
[1,null,null,null,null,0,null,0,null,0,null,0,null,"No"]
[1,null,null,null,null,0,null,0,null,0,null,0,null,"No"]
[1,null,null,null,null,0,null,0,null,0,null,0,null,"No"]
[1,null,null,null,null,0,null,0,null,0,null,0,null,"No"]
[1,null,null,null,null,0,null,0,null,0,null,0,null,"No"]
[1,null,null,null,null,0,null,0,null,0,null,0,null,"No"]
[1,null,null,null,null,0,null,0,null,0,null,0,null,"No"]
[1,null,null,null,null,0,null,0,null,0,null,0,null,"No"]
[1,null,null,null,null,0,null,0,null,0,null,0,null,"No"]
[1,null,null,null,null,0,null,0,null,0,null,0,null,"No"]
[1,null,null,null,null,0,null,0,null,0,null,0,null,"No"]
[1,null,null,null,null,0,null,0,null,0,null,0,null,"No"]
[1,null,null,null,null,0,null,0,null,0,null,0,null,"No"]
[1,null,null,null,null,0,null,0,null,0,null,0,null,"No"]
[1,null,null,null,null,0,null,0,null,0,null,0,null,"No"]
[1,null,null,null,null,0,null,0,null,0,null,0,null,"No"]
[1,null,null,null,null,0,null,0,null,0,null,0,null,"No"]
[1,null,null,null,null,0,null,0,null,0,null,0,null,"No"]
[1,null,null,null,null,0,null,0,null,0,null,0,null,"No"]
[1,null,null,null,null,0,null,0,null,0,null,0,null,"No"]
[1,null,null,null,null,0,null,0,null,0,null,0,null,"No"]
[1,null,null,null,null,0,null,0,null,0,null,0,null,"No"]
[1,null,null,null,null,0,null,0,null,0,null,0,null,"No"]
[1,null,null,null,null,0,null,0,null,0,null,0,null,"No"]
[1,null,null,null,null,0,null,0,null,0,null,0,null,"No"]
[1,null,null,null,null,0,null,0,null,0,null,0,null,"No"]
[1,null,null,null,null,0,null,0,null,0,null,0,null,"No"]
[1,null,null,null,null,0,null,0,null,0,null,0,null,"No"]
[1,null,null,null,null,0,null,0,null,0,null,0,null,"No"]
[1,null,null,null,null,0,null,0,null,0,null,0,null,"No"]
[1,null,null,null,null,0,null,0,null,0,null,0,null,"No"]
[1,null,null,null,null,0,null,0,null,0,null,0,null,"No"]
[1,null,null,null,null,0,null,0,null,0,null,0,null,"No"]
[1,null,null,null,null,0,null,0,null,0,null,0,null,"No"]
[1,null,null,null,null,0,null,0,null,0,null,0,null,"No"]
[1,null,null,null,null,0,null,0,null,0,null,0,null,"No"]
[1,null,null,null,null,0,null,0,null,0,null,0,null,"No"]
[1,null,null,null,null,0,null,0,null,0,null,0,null,"No"]
[1,null,null,null,null,0,null,0,null,0,null,0,null,"No"]
[1,null,null,null,null,0,null,0,null,0,null,0,null,"No"]
[1,null,null,null,null,0,null,0,null,0,null,0,null,"No"]
[1,null,null,null,null,0,null,0,null,0,null,0,null,"No"]
[1,null,null,null,null,0,null,0,null,0,null,0,null,"No"]
[1,null,null,null,null,{"$f":"E66*3","v":0},null,{"$f":"G66*1","v":0},null,{"$f":"F66+H66+I66","v":0},null,{"$f":"SUM(J66)+IF(K66=\"Y\",7,IF(K66=\"N\",0))","v":0},null,{"$f":"IF(AND(L66>50,M66=\"Y\"),\"Yes\",\"No\")","v":"No"}]
[1,null,null,null,null,0,null,0,null,0,null,0,null,"No"]
[1,null,null,null,null,0,null,0,null,0,null,0,null,"No"]
[1,null,null,null,null,0,null,0,null,0,null,0,null,"No"]
[1,null,null,null,null,0,null,0,null,0,null,0,null,"No"]
[1,null,null,null,null,0,null,0,null,0,null,0,null,"No"]
[1,null,null,null,null,0,null,0,null,0,null,0,null,"No"]
[1,null,null,null,null,0,null,0,null,0,null,0,null,"No"]
[1,null,null,null,null,0,null,0,null,0,null,0,null,"No"]
[1,null,null,null,null,0,null,0,null,0,null,0,null,"No"]
[1,null,null,null,null,0,null,0,null,0,null,0,null,"No"]
[1,null,null,null,null,0,null,0,null,0,null,0,null,"No"]
[1,null,null,null,null,0,null,0,null,0,null,0,null,"No"]
[1,null,null,null,null,0,null,0,null,0,null,0,null,"No"]
[1,null,null,null,null,0,null,0,null,0,null,0,null,"No"]
[1,null,null,null,null,0,null,0,null,0,null,0,null,"No"]
[1,null,null,null,null,0,null,0,null,0,null,0,null,"No"]
[1,null,null,null,null,0,null,0,null,0,null,0,null,"No"]
[1,null,null,null,null,0,null,0,null,0,null,0,null,"No"]
[1,null,null,null,null,0,null,0,null,0,null,0,null,"No"]
[1,null,null,null,null,0,null,0,null,0,null,0,null,"No"]
[1,null,null,null,null,0,null,0,null,0,null,0,null,"No"]
[1,null,null,null,null,0,null,0,null,0,null,0,null,"No"]
[1,null,null,null,null,0,null,0,null,0,null,0,null,"No"]
[1,null,null,null,null,0,null,0,null,0,null,0,null,"No"]
[1,null,null,null,null,0,null,0,null,0,null,0,null,"No"]
[1,null,null,null,null,0,null,0,null,0,null,0,null,"No"]
[1,null,null,null,null,0,null,0,null,0,null,0,null,"No"]
[1,null,null,null,null,0,null,0,null,0,null,0,null,"No"]
[1,null,null,null,null,0,null,0,null,0,null,0,null,"No"]
[1,null,null,null,null,0,null,0,null,0,null,0,null,"No"]
[1,null,null,null,null,0,null,0,null,0,null,0,null,"No"]
[1,null,null,null,null,0,null,0,null,0,null,0,null,"No"]
[1,null,null,null,null,0,null,0,null,0,null,0,null,"No"]
[1,null,null,null,null,0,null,0,null,0,null,0,null,"No"]
[1,null,null,null,null,0,null,0,null,0,null,0,null,"No"]
[1,null,null,null,null,0,null,0,null,0,null,0,null,"No"]
[1,null,null,null,null,0,null,0,null,0,null,0,null,"No"]
[null,null,null,null,null,0,null,0,null,0,null,0,null,"No"]
[null,null,null,null,null,0,null,0,null,0,null,0,null,"No"]
[null,null,null,null,null,0,null,0,null,0,null,0,null,"No"]
[null,null,null,null,null,0,null,0,null,0,null,0,null,"No"]
[null,null,null,null,null,0,null,0,null,0,null,0,null,"No"]
[null,null,null,null,null,0,null,0,null,0,null,0,null,"No"]
[null,null,null,null,null,0,null,0,null,0,null,0,null,"No"]
[null,null,null,null,null,0,null,0,null,0,null,0,null,"No"]
[null,null,null,null,null,0,null,0,null,0,null,0,null,"No"]
[null,null,null,null,null,0,null,0,null,0,null,0,null,"No"]
[null,null,null,null,null,0,null,0,null,0,null,0,null,"No"]
[null,null,null,null,null,0,null,0,null,0,null,0,null,"No"]
[null,null,null,null,null,0,null,0,null,0,null,0,null,"No"]
[null,null,null,null,null,0,null,0,null,0,null,0,null,"No"]
[null,null,null,null,null,0,null,0,null,0,null,0,null,"No"]
[null,null,null,null,null,0,null,0,null,0,null,0,null,"No"]
[null,null,null,null,null,0,null,0,null,0,null,0,null,"No"]
[null,null,null,null,null,0,null,0,null,0,null,0,null,"No"]
[null,null,null,null,null,0,null,0,null,0,null,0,null,"No"]
[null,null,null,null,null,0,null,0,null,0,null,0,null,"No"]
[null,null,null,null,null,0,null,0,null,0,null,0,null,"No"]
[null,null,null,null,null,0,null,0,null,0,null,0,null,"No"]
[null,null,null,null,null,0,null,0,null,0,null,0,null,"No"]
[null,null,null,null,null,0,null,0,null,0,null,0,null,"No"]
[null,null,null,null,null,0,null,0,null,0,null,0,null,"No"]
[null,null,null,null,null,0,null,0,null,0,null,0,null,"No"]
[null,null,null,null,null,{"$f":"E130*3","v":0},null,{"$f":"G130*1","v":0},null,{"$f":"F130+H130+I130","v":0},null,{"$f":"SUM(J130)+IF(K130=\"Y\",7,IF(K130=\"N\",0))","v":0},null,{"$f":"IF(AND(L130>50,M130=\"Y\"),\"Yes\",\"No\")","v":"No"}]
[null,null,null,null,null,0,null,0,null,0,null,0,null,"No"]
[null,null,null,null,null,0,null,0,null,0,null,0,null,"No"]
[null,null,null,null,null,0,null,0,null,0,null,0,null,"No"]
[null,null,null,null,null,0,null,0,null,0,null,0,null,"No"]
[null,null,null,null,null,0,null,0,null,0,null,0,null,"No"]
[null,null,null,null,null,0,null,0,null,0,null,0,null,"No"]
[null,null,null,null,null,0,null,0,null,0,null,0,null,"No"]
[null,null,null,null,null,0,null,0,null,0,null,0,null,"No"]
[null,null,null,null,null,0,null,0,null,0,null,0,null,"No"]
[null,null,null,null,null,0,null,0,null,0,null,0,null,"No"]
[null,null,null,null,null,0,null,0,null,0,null,0,null,"No"]
[null,null,null,null,null,0,null,0,null,0,null,0,null,"No"]
[null,null,null,null,null,0,null,0,null,0,null,0,null,"No"]
[null,null,null,null,null,0,null,0,null,0,null,0,null,"No"]
[null,null,null,null,null,0,null,0,null,0,null,0,null,"No"]
[null,null,null,null,null,0,null,0,null,0,null,0,null,"No"]
[null,null,null,null,null,0,null,0,null,0,null,0,null,"No"]
[null,null,null,null,null,0,null,0,null,0,null,0,null,"No"]
[null,null,null,null,null,0,null,0,null,0,null,0,null,"No"]
[null,null,null,null,null,0,null,0,null,0,null,0,null,"No"]
[null,null,null,null,null,0,null,0,null,0,null,0,null,"No"]
[null,null,null,null,null,0,null,0,null,0,null,0,null,"No"]
[null,null,null,null,null,0,null,0,null,0,null,0,null,"No"]
[null,null,null,null,null,0,null,0,null,0,null,0,null,"No"]
[null,null,null,null,null,0,null,0,null,0,null,0,null,"No"]
[null,null,null,null,null,0,null,0,null,0,null,0,null,"No"]
[null,null,null,null,null,0,null,0,null,0,null,0,null,"No"]
[null,null,null,null,null,0,null,0,null,0,null,0,null,"No"]
[null,null,null,null,null,0,null,0,null,0,null,0,null,"No"]
[null,null,null,null,null,0,null,0,null,0,null,0,null,"No"]
[null,null,null,null,null,0,null,0,null,0,null,0,null,"No"]
[null,null,null,null,null,0,null,0,null,0,null,0,null,"No"]
[null,null,null,null,null,0,null,0,null,0,null,0,null,"No"]
[null,null,null,null,null,0,null,0,null,0,null,0,null,"No"]
[null,null,null,null,null,0,null,0,null,0,null,0,null,"No"]
[null,null,null,null,null,0,null,0,null,0,null,0,null,"No"]
[null,null,null,null,null,0,null,0,null,0,null,0,null,"No"]
[null,null,null,null,null,0,null,0,null,0,null,0,null,"No"]
[null,null,null,null,null,0,null,0,null,0,null,0,null,"No"]
[null,null,null,null,null,0,null,0,null,0,null,0,null,"No"]
[null,null,null,null,null,0,null,0,null,0,null,0,null,"No"]
[null,null,null,null,null,0,null,0,null,0,null,0,null,"No"]
[null,null,null,null,null,0,null,0,null,0,null,0,null,"No"]
[null,null,null,null,null,0,null,0,null,0,null,0,null,"No"]
[null,null,null,null,null,0,null,0,null,0,null,0,null,"No"]
[null,null,null,null,null,0,null,0,null,0,null,0,null,"No"]
[null,null,null,null,null,0,null,0,null,0,null,0,null,"No"]
[null,null,null,null,null,0,null,0,null,0,null,0,null,"No"]
[null,null,null,null,null,0,null,0,null,0,null,0,null,"No"]
[null,null,null,null,null,0,null,0,null,0,null,0,null,"No"]
[null,null,null,null,null,0,null,0,null,0,null,0,null,"No"]
[null,null,null,null,null,0,null,0,null,0,null,0,null,"No"]
[null,null,null,null,null,0,null,0,null,0,null,0,null,"No"]
[null,null,null,null,null,0,null,0,null,0,null,0,null,"No"]
[null,null,null,null,null,0,null,0,null,0,null,0,null,"No"]
[null,null,null,null,null,0,null,0,null,0,null,0,null,"No"]
[null,null,null,null,null,0,null,0,null,0,null,0,null,"No"]
[null,null,null,null,null,0,null,0,null,0,null,0,null,"No"]
[null,null,null,null,null,0,null,0,null,0,null,0,null,"No"]
[null,null,null,null,null,0,null,0,null,0,null,0,null,"No"]
[null,null,null,null,null,0,null,0,null,0,null,0,null,"No"]
[null,null,null,null,null,0,null,0,null,0,null,0,null,"No"]
[null,null,null,null,null,0,null,0,null,0,null,0,null,"No"]
[null,null,null,null,null,{"$f":"E194*3","v":0},null,{"$f":"G194*1","v":0},null,{"$f":"F194+H194+I194","v":0},null,{"$f":"SUM(J194)+IF(K194=\"Y\",7,IF(K194=\"N\",0))","v":0},null,{"$f":"IF(AND(L194>50,M194=\"Y\"),\"Yes\",\"No\")","v":"No"}]
[null,null,null,null,null,0,null,0,null,0,null,0,null,"No"]
[null,null,null,null,null,0,null,0,null,0,null,0,null,"No"]
[null,null,null,null,null,0,null,0,null,0,null,0,null,"No"]
[null,null,null,null,null,0,null,0,null,0,null,0,null,"No"]
[null,null,null,null,null,0,null,0,null,0,null,0,null,"No"]
[null,null,null,null,null,0,null,0,null,0,null,0,null,"No"]
[null,null,null,null,null,0,null,0,null,0,null,0,null,"No"]
[null,null,null,null,null,0,null,0,null,0,null,0,null,"No"]
[null,null,null,null,null,0,null,0,null,0,null,0,null,"No"]
[null,null,null,null,null,0,null,0,null,0,null,0,null,"No"]
[null,null,null,null,null,0,null,0,null,0,null,0,null,"No"]
[null,null,null,null,null,0,null,0,null,0,null,0,null,"No"]
[null,null,null,null,null,0,null,0,null,0,null,0,null,"No"]
[null,null,null,null,null,0,null,0,null,0,null,0,null,"No"]
[null,null,null,null,null,0,null,0,null,0,null,0,null,"No"]
[null,null,null,null,null,0,null,0,null,0,null,0,null,"No"]
[null,null,null,null,null,0,null,0,null,0,null,0,null,"No"]
[null,null,null,null,null,0,null,0,null,0,null,0,null,"No"]
[null,null,null,null,null,0,null,0,null,0,null,0,null,"No"]
[null,null,null,null,null,0,null,0,null,0,null,0,null,"No"]
[null,null,null,null,null,0,null,0,null,0,null,0,null,"No"]
[null,null,null,null,null,0,null,0,null,0,null,0,null,"No"]
[null,null,null,null,null,0,null,0,null,0,null,0,null,"No"]
[null,null,null,null,null,0,null,0,null,0,null,0,null,"No"]
[null,null,null,null,null,0,null,0,null,0,null,0,null,"No"]
[null,null,null,null,null,0,null,0,null,0,null,0,null,"No"]
[null,null,null,null,null,0,null,0,null,0,null,0,null,"No"]
[null,null,null,null,null,0,null,0,null,0,null,0,null,"No"]
[null,null,null,null,null,0,null,0,null,0,null,0,null,"No"]
[null,null,null,null,null,0,null,0,null,0,null,0,null,"No"]
[null,null,null,null,null,0,null,0,null,0,null,0,null,"No"]
[null,null,null,null,null,0,null,0,null,0,null,0,null,"No"]
[null,null,null,null,null,0,null,0,null,0,null,0,null,"No"]
[null,null,null,null,null,0,null,0,null,0,null,0,null,"No"]
[null,null,null,null,null,0,null,0,null,0,null,0,null,"No"]
[null,null,null,null,null,0,null,0,null,0,null,0,null,"No"]
[null,null,null,null,null,0,null,0,null,0,null,0,null,"No"]
[null,null,null,null,null,0,null,0,null,0,null,0,null,"No"]
[null,null,null,null,null,0,null,0,null,0,null,0,null,"No"]
[null,null,null,null,null,0,null,0,null,0,null,0,null,"No"]
[null,null,null,null,null,0,null,0,null,0,null,0,null,"No"]
[null,null,null,null,null,0,null,0,null,0,null,0,null,"No"]
[null,null,null,null,null,0,null,0,null,0,null,0,null,"No"]
[null,null,null,null,null,0,null,0,null,0,null,0,null,"No"]
[null,null,null,null,null,0,null,0,null,0,null,0,null,"No"]
[null,null,null,null,null,0,null,0,null,0,null,0,null,"No"]
[null,null,null,null,null,0,null,0,null,0,null,0,null,"No"]
[null,null,null,null,null,0,null,0,null,0,null,0,null,"No"]
[null,null,null,null,null,0,null,0,null,0,null,0,null,"No"]
[null,null,null,null,null,0,null,0,null,0,null,0,null,"No"]
[null,null,null,null,null,0,null,0,null,0,null,0,null,"No"]
[null,null,null,null,null,0,null,0,null,0,null,0,null,"No"]
[null,null,null,null,null,0,null,0,null,0,null,0,null,"No"]
[null,null,null,null,null,0,null,0,null,0,null,0,null,"No"]
[null,null,null,null,null,0,null,0,null,0,null,0,null,"No"]
[null,null,null,null,null,0,null,0,null,0,null,0,null,"No"]
[null,null,null,null,null,0,null,0,null,0,null,0,null,"No"]
[null,null,null,null,null,0,null,0,null,0,null,0,null,"No"]
[null,null,null,null,null,0,null,0,null,0,null,0,null,"No"]
[null,null,null,null,null,0,null,0,null,0,null,0,null,"No"]
[null,null,null,null,null,0,null,0,null,0,null,0,null,"No"]
[null,null,null,null,null,0,null,0,null,0,null,0,null,"No"]
[null,null,null,null,null,0,null,0,null,0,null,0,null,"No"]
[null,null,null,null,null,{"$f":"E258*3","v":0},null,{"$f":"G258*1","v":0},null,{"$f":"F258+H258+I258","v":0},null,{"$f":"SUM(J258)+IF(K258=\"Y\",7,IF(K258=\"N\",0))","v":0},null,{"$f":"IF(AND(L258>50,M258=\"Y\"),\"Yes\",\"No\")","v":"No"}]
[null,null,null,null,null,0,null,0,null,0,null,0,null,"No"]
[null,null,null,null,null,0,null,0,null,0,null,0,null,"No"]
[null,null,null,null,null,0,null,0,null,0,null,0,null,"No"]
[null,null,null,null,null,0,null,0,null,0,null,0,null,"No"]
[null,null,null,null,null,0,null,0,null,0,null,0,null,"No"]
[null,null,null,null,null,0,null,0,null,0,null,0,null,"No"]
[null,null,null,null,null,0,null,0,null,0,null,0,null,"No"]
[null,null,null,null,null,0,null,0,null,0,null,0,null,"No"]
[null,null,null,null,null,0,null,0,null,0,null,0,null,"No"]
[null,null,null,null,null,0,null,0,null,0,null,0,null,"No"]
[null,null,null,null,null,0,null,0,null,0,null,0,null,"No"]
[null,null,null,null,null,0,null,0,null,0,null,0,null,"No"]
[null,null,null,null,null,0,null,0,null,0,null,0,null,"No"]
[null,null,null,null,null,0,null,0,null,0,null,0,null,"No"]
[null,null,null,null,null,0,null,0,null,0,null,0,null,"No"]
[null,null,null,null,null,0,null,0,null,0,null,0,null,"No"]
[null,null,null,null,null,0,null,0,null,0,null,0,null,"No"]
[null,null,null,null,null,0,null,0,null,0,null,0,null,"No"]
[null,null,null,null,null,0,null,0,null,0,null,0,null,"No"]
[null,null,null,null,null,0,null,0,null,0,null,0,null,"No"]
[null,null,null,null,null,0,null,0,null,0,null,0,null,"No"]
[null,null,null,null,null,0,null,0,null,0,null,0,null,"No"]
[null,null,null,null,null,0,null,0,null,0,null,0,null,"No"]
[null,null,null,null,null,0,null,0,null,0,null,0,null,"No"]
[null,null,null,null,null,0,null,0,null,0,null,0,null,"No"]
[null,null,null,null,null,0,null,0,null,0,null,0,null,"No"]
[null,null,null,null,null,0,null,0,null,0,null,0,null,"No"]
[null,null,null,null,null,0,null,0,null,0,null,0,null,"No"]
[null,null,null,null,null,0,null,0,null,0,null,0,null,"No"]
[null,null,null,null,null,0,null,0,null,0,null,0,null,"No"]
[null,null,null,null,null,0,null,0,null,0,null,0,null,"No"]
[null,null,null,null,null,0,null,0,null,0,null,0,null,"No"]
[null,null,null,null,null,0,null,0,null,0,null,0,null,"No"]
[null,null,null,null,null,0,null,0,null,0,null,0,null,"No"]
[null,null,null,null,null,0,null,0,null,0,null,0,null,"No"]
[null,null,null,null,null,0,null,0,null,0,null,0,null,"No"]
[null,null,null,null,null,0,null,0,null,0,null,0,null,"No"]
[null,null,null,null,null,0,null,0,null,0,null,0,null,"No"]
[null,null,null,null,null,0,null,0,null,0,null,0,null,"No"]
[null,null,null,null,null,0,null,0,null,0,null,0,null,"No"]

{"sheet":"UPDIF Div Sort","index":4,"n_rows":1,"n_cols":15,"rows_kept":1,"cut":false,"hidden":false,"merged":[]}
["Level ","Handler","Dog","UDT #\n(this is the UpDog Team # not the competitor #)","Jumps            Total # of jumps completed successfully","Jumps Total","Catch Zones  Total # of catches completed successfully","Catch Total","Time Remaining   Total numbers of seconds remaining (rounded to the nearest whole number)","Total for Zones","Was the last catch made in the Sweet Spot\nY or N?","Zones + SS Total","Were all throws thrown as Rollers\nY or N?","High Roller","Division"]